bitfinex/quotes_SOLUSD_20240705
["timestamp","ask_amount","ask_price","bid_price","bid_amount"]
[1720149068620,20.0,122.26,122.05,1.45553578]
[1720149068829,0.17,122.25,122.05,1.45553578]
[1720149069152,0.17,122.25,122.08,20.4774]
[1720149069369,0.17,122.25,122.05,1.45553578]
[1720149069656,0.17,122.25,122.0,7.66503083]
[1720149069657,45.1561,122.17,121.98,0.04857704]
[1720149069858,15.0,122.12,121.78,100.0]
[1720149070043,100.0,122.21,121.78,100.0]
[1720149070044,15.0,122.09,121.78,100.0]
[1720149070348,12.9007,122.04,121.74,13.2937]
[1720149070554,8.1994,121.96,121.74,13.2937]
[1720149070847,8.2011,121.94,121.78,8.2113]
[1720149071049,45.3787,121.88,121.7,100.0]
[1720149071254,115.0,122.02,121.62,100.0]
[1720149071255,32.478,121.84,121.62,100.0]
[1720149071433,8.209,121.82,121.62,100.0]
[1720149071625,12.9007,121.83,121.53,41.4192617]
[1720149071626,8.2164,121.71,121.53,41.4192617]
[1720149071951,3.6201,121.69,121.52,32.478]
[1720149072153,8.2214,121.64,121.52,32.478]
[1720149072339,15.0,121.65,121.43,0.2149347]
[1720149072525,32.0879,121.68,121.43,13.4196347]
[1720149072729,8.2192,121.67,121.5,8.2302]
[1720149072971,8.2219,121.63,121.43,0.2149347]
[1720149073133,12.1801,121.71,121.47,20.5804]
[1720149073134,8.2213,121.64,121.47,20.5804]
[1720149073328,32.3586,121.79,121.48,7.28264249]
[1720149073529,100.0,121.78,121.46,12.8412]
[1720149073751,8.2142,121.74,121.56,8.2258]
[1720149074058,32.3586,121.84,121.49,156.153]
[1720149074362,100.0,121.9,121.66,15.0]
[1720149074532,32.3586,121.93,121.75,8.2132]
[1720149074731,8.1959973,122.1,121.66,15.0]
[1720149075055,32.3586,122.13,121.81,21.0503]
[1720149075056,8.1968,122.0,121.81,21.0503]
[1720149075231,32.3586,122.13,121.95,20.4989]
[1720149075437,32.3586,122.13,121.94,8.2002]
[1720149075745,32.3586,122.13,122.0,28.6866]
[1720149075928,8.1941,122.04,121.85,8.2066]
[1720149076133,12.9385,122.12,121.85,100.0]
[1720149076329,12.9385,122.12,121.86,0.17]
[1720149076527,12.9385,122.12,121.93,8.2013]
[1720149076730,32.3586,122.13,122.02,20.4871]
[1720149076954,32.3586,122.13,121.92,41.0102]
[1720149076955,32.3586,122.13,121.97,8.1984]
[1720149077129,32.3586,122.13,121.88,15.0]
[1720149077325,12.4147,122.2,122.0,20.4906]
[1720149077564,12.4147,122.2,122.05,20.4828]
[1720149077728,32.7973,122.22,122.1,8.1899]
[1720149077928,32.7973,122.22,122.13,8.1876]
[1720149078137,32.7973,122.22,122.14,20.4679]
[1720149078326,100.0,122.36,122.07,15.0]
[1720149078550,45.2453,122.39,122.09,23.81555916]
[1720149078852,15.0,122.59,122.29,28.6184]
[1720149078853,45.2453,122.49,122.29,28.6184]
[1720149079467,3.47e-05,122.31,122.3,0.17]
[1720149079629,12.1211,122.6,122.34,100.0]
[1720149079830,30.9748,122.62,122.54,8.1601]
[1720149080058,12.1211,122.69,122.53,8.1608]
[1720149080260,100.0,122.68,122.45,20.4149]
[1720149080447,15.0,122.61,122.37,8.1716]
[1720149080756,32.683379,122.62,122.49,20.4093]
[1720149080982,24.45984509,122.65,122.54,8.1602]
[1720149081635,24.45984509,122.65,122.64,8.1539]
[1720149081834,24.45984509,122.65,122.64,8.3239]
[1720149082044,24.45984509,122.65,122.64,28.3239]
[1720149082444,4.509e-05,122.65,122.64,28.3239]
[1720149082745,0.2149347,122.81,122.64,100.17]
[1720149082945,0.2149347,122.81,122.65,0.17]
[1720149083134,0.2149347,122.81,122.71,8.1488]
[1720149083347,0.2149347,122.81,122.72,20.3706]
[1720149083673,0.2149347,122.81,122.76,20.3644]
[1720149083837,0.2149347,122.81,122.79,8.1436]
[1720149084039,0.2149347,122.81,122.8,20.5283]
[1720149084300,0.2149347,122.81,122.71,8.1489]
[1720149084452,0.2149347,122.81,122.79,8.1436]
[1720149084778,8.1281,123.03,122.84,8.1402]
[1720149084953,20.3644,122.94,122.78,9.73677301]
[1720149085134,20.3644,122.94,122.65,15.0]
[1720149085339,8.1812817,122.96,122.76,20.3643]
[1720149085545,8.1812817,122.96,122.66,0.17]
[1720149085546,0.0483817,122.96,122.77,0.17]
[1720149085741,0.0483817,122.96,122.67,100.0]
[1720149085948,0.0483817,122.96,122.62,8.1549]
[1720149085949,15.0,122.88,122.62,8.1549]
[1720149086157,12.8652,122.87,122.73,8.1478]
[1720149086330,12.8652,122.87,122.69,20.3761]
[1720149086533,12.8652,122.87,122.56,278.57]
[1720149086730,12.8652,122.87,122.57,78.57]
[1720149086962,30.313,122.95,122.74,8.1468]
[1720149086963,8.1356,122.92,122.74,8.1468]
[1720149087165,30.313,122.95,122.75,20.3664]
[1720149087467,1.86742538,122.94,122.83,20.3522]
[1720149087634,1.86742538,122.94,122.77,100.0]
[1720149087844,1.86742538,122.94,122.78,100.0]
[1720149088039,1.86742538,122.94,122.79,20.0]
[1720149088244,0.0483817,122.96,122.8,0.17]
[1720149088440,0.0483817,122.96,122.85,20.3486]
[1720149088655,0.0483817,122.96,122.86,20.17]
[1720149088865,0.0483817,122.96,122.86,0.17]
[1720149089046,0.0483817,122.96,122.8,16.05875491]
[1720149089360,0.0483817,122.96,122.78,100.0]
[1720149089553,0.0483817,122.96,122.85,20.3488]
[1720149089760,0.0483817,122.96,122.81,40.7117]
[1720149090044,0.0483817,122.96,122.86,20.3467]
[1720149090257,0.0483817,122.96,122.79,100.0]
[1720149090258,0.0483817,122.96,122.75,100.0]
[1720149090538,0.0483817,122.96,122.81,100.0]
[1720149090875,0.0483817,122.96,122.87,28.4836]
[1720149091063,0.0483817,122.96,122.88,20.17]
[1720149091273,0.0483817,122.96,122.88,0.17]
[1720149091568,0.0483817,122.96,122.8,8.143]
[1720149091797,0.0483817,122.96,122.83,8.1411]
[1720149091977,0.0483817,122.96,122.81,120.3551]
[1720149092150,0.0483817,122.96,122.9,8.1362]
[1720149092354,0.0483817,122.96,122.88,20.3447]
[1720149092570,0.0483817,122.96,122.82,15.0]
[1720149092571,0.0483817,122.96,122.89,8.1373]
[1720149092885,0.0483817,122.96,122.94,8.1337]
[1720149093060,0.0483817,122.96,122.92,8.1353]
[1720149093371,11.82806826,123.28,122.98,15.0]
[1720149093553,11.77968656,123.28,123.07,20.3133]
[1720149093745,11.77968656,123.28,123.15,20.3002]
[1720149093953,11.77968656,123.28,123.08,200.1213239]
[1720149094250,30.7122,123.29,123.17,20.2965]
[1720149094467,0.1,123.29,123.26,8.1126]
[1720149094669,0.1,123.29,123.27,8.112]
[1720149095073,0.1,123.29,123.27,23.112]
[1720149095274,0.1,123.29,123.26,118.96462182]
[1720149095577,0.1349347,123.31,123.28,100.0]
[1720149096073,0.1,123.39,123.29,20.0]
[1720149096283,0.1,123.39,123.35,100.0]
[1720149096465,0.1,123.39,123.38,8.105]
[1720149096466,0.0001,123.39,123.38,8.105]
[1720149096674,0.0001,123.39,123.38,28.3676]
[1720149096858,0.0001,123.39,123.38,39.83828743]
[1720149097253,0.1,123.49,123.42,20.2559]
[1720149097451,0.1,123.49,123.47,8.0987]
[1720149098181,0.1,123.49,123.38,12.82448954]
[1720149098381,0.1,123.49,123.3,140.5501]
[1720149098555,0.1,123.49,123.39,20.2601]
[1720149098755,0.1,123.49,123.25,112.82448954]
[1720149098965,12.2382,123.45,123.18,100.0]
[1720149099167,12.2382,123.45,123.14,78.57]
[1720149099168,15.0,123.43,123.21,20.289]
[1720149099375,8.1119,123.28,123.03,100.0]
[1720149099584,65.0,123.27,123.01,0.1]
[1720149099772,65.0,123.27,123.11,0.1]
[1720149099773,46.2937,123.25,123.11,0.1]
[1720149099971,20.17,123.24,123.11,0.1]
[1720149100279,20.17,123.24,123.01,0.1]
[1720149100280,8.1191,123.17,123.01,0.1]
[1720149100454,55.4571,123.24,123.01,0.1]
[1720149100455,15.0,123.13,123.01,0.1]
[1720149100652,14.5326,123.15,123.01,0.1]
[1720149100882,31.2937,123.25,123.01,0.1]
[1720149101080,20.0,123.24,123.03,100.0]
[1720149101280,14.5326,123.21,123.07,8.1252]
[1720149101487,8.1185,123.18,123.01,0.1]
[1720149101793,14.5326,123.19,123.01,0.1]
[1720149102091,14.5326,123.16,123.01,0.1]
[1720149102261,15.0,123.15,122.91,0.1]
[1720149102464,15.0,123.16,122.98,100.0]
[1720149102696,15.0,123.22,122.96,100.0]
[1720149102981,31.2937,123.25,122.91,0.1]
[1720149102982,15.0,123.09,122.91,0.1]
[1720149103186,15.0,123.06,122.91,0.1]
[1720149103395,15.0,123.03,122.91,0.1]
[1720149103572,15.0,122.97,122.91,0.1]
[1720149103758,15.0,123.01,122.91,0.1]
[1720149103963,15.0,123.03,122.91,0.1]
[1720149104265,12.9126,123.17,123.06,8.1259]
[1720149104478,12.9126,123.17,122.94,100.0]
[1720149104686,12.9126,123.17,123.09,8.1239]
[1720149104885,31.1646,123.18,122.97,100.0]
[1720149105071,15.0,123.21,123.13,8.1213]
[1720149105272,15.0,123.21,123.1,20.3075]
[1720149105589,15.0,123.21,122.97,100.0]
[1720149105771,15.0,123.21,123.07,20.3124]
[1720149106299,8.1196,123.16,122.92,100.0]
[1720149106472,15.0,123.12,123.05,8.1263]
[1720149106674,15.0,123.12,122.99,100.0]
[1720149106873,15.0,123.12,123.06,20.3139]
[1720149107074,15.0,123.12,122.99,100.0]
[1720149107075,15.0,123.19,123.11,8.1227]
[1720149107297,15.0,123.19,123.0,100.0]
[1720149107596,15.0,123.19,123.12,20.3052]
[1720149107975,15.0,123.19,123.08,20.311]
[1720149108280,15.0,123.17,122.96,100.0]
[1720149108474,8.1168,123.21,122.94,119.2372]
[1720149108475,15.0,123.19,123.0,100.0]
[1720149108674,15.0,123.26,123.12,20.3051]
[1720149108994,15.0,123.21,122.97,100.0]
[1720149109195,15.0,123.21,122.99,40.6523]
[1720149109386,15.0,123.21,123.06,8.126]
[1720149109586,23.1136,123.25,123.08,8.1247]
[1720149109892,15.0,123.25,123.11,20.3062]
[1720149110190,20.0,123.24,123.08,8.1244]
[1720149110368,15.0,123.25,123.07,100.0]
[1720149110573,15.0,123.25,123.16,20.2984]
[1720149110794,15.0,123.25,123.12,20.3042]
[1720149111100,15.0,123.25,123.15,20.2998]
[1720149111272,0.1,123.29,123.18,20.2951]
[1720149111474,0.1,123.29,123.19,20.17]
[1720149111687,0.1,123.29,123.19,0.17]
[1720149111878,0.1,123.29,123.24,8.1136]
[1720149112093,0.1,123.29,123.18,20.4642]
[1720149112265,0.1,123.29,123.09,100.0]
[1720149112680,0.1,123.29,123.13,20.3031]
[1720149112681,8.211,123.29,123.13,20.3031]
[1720149112973,8.211,123.29,123.12,8.122]
[1720149112974,8.1139,123.25,123.09,20.3097]
[1720149113282,15.0,123.25,123.07,4.5737262]
[1720149113485,15.0,123.23,123.07,12.6989262]
[1720149113697,20.0,123.22,122.99,100.0]
[1720149113880,0.17,123.21,123.05,20.3162]
[1720149114192,20.0,123.22,123.07,8.1248]
[1720149114500,15.0,123.17,123.01,20.3224]
[1720149114701,15.0,123.13,122.96,20.3302]
[1720149114868,15.0,123.16,122.96,100.0]
[1720149115179,15.0,123.16,122.94,100.0]
[1720149115499,15.0,123.16,123.12,8.1219]
[1720149115703,32.4592,123.22,123.04,95.88152182]
[1720149115879,32.4592,123.22,123.03,95.88152182]
[1720149116071,32.4592,123.22,122.95,88.72732288]
[1720149116072,32.4592,123.22,123.04,100.0]
[1720149116272,32.4592,123.22,123.03,100.0]
[1720149116487,15.0,123.23,123.04,220.0]
[1720149116687,15.0,123.23,123.06,100.0]
[1720149116886,15.0,123.23,123.13,20.3035]
[1720149117191,15.0,123.16,123.04,20.3175]
[1720149117397,14.5688,123.16,122.98,100.0]
[1720149117877,14.5688,123.16,123.04,8.1269]
[1720149118075,14.5688,123.16,122.94,10.83513187]
[1720149118290,14.5688,123.11,122.99,8.1305]
[1720149118512,32.9482,123.15,123.08,8.1244]
[1720149118675,32.9482,123.15,123.05,20.3167]
[1720149118987,32.9482,123.15,123.01,20.3226]
[1720149119187,32.9482,123.15,122.91,0.1]
[1720149119188,14.5688,123.08,122.91,0.1]
[1720149119382,14.5688,123.08,122.92,40.6742]
[1720149119589,20.0,123.07,122.92,20.3373]
[1720149119897,14.5688,123.08,122.98,20.3283]
[1720149120276,14.5688,123.08,122.95,8.1331]
[1720149120474,14.5688,123.06,122.97,20.3296]
[1720149120670,13.1021,123.13,122.92,41.1062]
[1720149120968,140.5646,123.27,122.92,41.1062]
[1720149120969,14.5688,123.18,122.98,200.0]
[1720149121176,87.27483454,123.16,122.93,10.83513187]
[1720149121375,14.5688,123.14,123.03,8.1277]
[1720149121576,14.5688,123.14,122.99,8.1301]
[1720149121827,16.44654101,123.17,122.99,100.0]
[1720149122101,14.5688,123.21,123.0,201.8806935]
[1720149122299,100.0,123.33,123.11,8.1227]
[1720149122300,46.7656,123.24,123.11,8.1227]
[1720149122604,32.1968,123.24,123.05,100.0]
[1720149122776,32.1968,123.24,123.06,0.17]
[1720149122973,32.1968,123.24,123.06,200.0]
[1720149123174,32.1968,123.24,123.1,100.4312]
[1720149123374,0.1,123.29,123.12,0.4312]
[1720149123569,0.1,123.29,123.28,8.1116]
[1720149123791,0.1,123.29,123.25,20.2825]
[1720149123975,0.1,123.29,123.26,0.17]
[1720149124286,0.1,123.29,123.11,120.0]
[1720149124491,14.5688,123.27,123.12,20.304]
[1720149124770,0.1,123.29,123.13,120.0]
[1720149124970,0.1,123.29,123.27,20.2804]
[1720149125199,0.1,123.29,123.28,8.1116]
[1720149125799,14.5688,123.42,123.28,8.1116]
[1720149125800,31.2332,123.43,123.37,8.1055]
[1720149125986,31.2332,123.43,123.37,8.1052]
[1720149126316,31.1099,123.52,123.37,8.1052]
[1720149126481,14.5688,123.51,123.37,8.1052]
[1720149126676,31.1099,123.52,123.37,8.1052]
[1720149126906,31.1099,123.52,123.37,8.1055]
[1720149127407,14.5688,123.41,123.23,100.0]
[1720149127621,14.5688,123.41,122.99,11.68131396]
[1720149127622,14.5688,123.35,123.17,40.5936]
[1720149127782,14.5688,123.34,123.17,40.5936]
[1720149127980,14.5688,123.44,123.19,100.0]
[1720149128208,12.6991,123.53,123.27,100.0]
[1720149128209,14.5688,123.46,123.27,100.0]
[1720149128423,14.5688,123.46,123.18,7.35800752]
[1720149128424,14.5688,123.5,123.37,8.1054]
[1720149128578,14.5688,123.48,123.37,8.1054]
[1720149128981,12.6991,123.53,123.33,0.4312]
[1720149129211,12.6991,123.53,123.37,100.0]
[1720149129509,0.2149347,123.56,123.41,100.0]
[1720149129701,0.2149347,123.56,123.44,100.0]
[1720149130098,0.2149347,123.56,123.38,20.0]
[1720149130099,0.2149347,123.56,123.4,0.4312]
[1720149130306,14.5688,123.47,123.39,28.364]
[1720149130498,14.5688,123.43,123.31,8.1095]
[1720149130804,14.5688,123.43,123.28,100.0]
[1720149130805,14.6688,123.49,123.41,20.2573]
[1720149131012,14.6688,123.49,123.31,100.0]
[1720149131209,14.5688,123.48,123.29,100.0]
[1720149131386,14.5688,123.44,123.32,20.2719]
[1720149131586,14.5688,123.44,123.28,100.4312]
[1720149131587,14.5688,123.42,123.27,100.0]
[1720149131821,14.5688,123.44,123.31,100.0]
[1720149132109,0.1,123.49,123.44,20.2517]
[1720149132302,0.1,123.49,123.43,20.2537]
[1720149132501,0.1,123.49,123.48,8.0984]
[1720149132689,0.2149347,123.56,123.43,0.4312]
[1720149132892,0.2149347,123.56,123.5,20.2419]
[1720149133114,0.2149347,123.56,123.46,20.2491]
[1720149133329,0.2149347,123.56,123.55,48.5632]
[1720149133491,0.2149347,123.56,123.54,20.236]
[1720149133686,0.2149347,123.56,123.55,8.0938]
[1720149134411,0.2149347,123.56,123.5,20.2427]
[1720149134618,0.2149347,123.56,123.42,20.2545]
[1720149134828,14.5688,123.52,123.4,8.1031]
[1720149134994,14.5688,123.52,123.35,100.0]
[1720149134995,14.5688,123.5,123.42,8.1023]
[1720149135192,14.5688,123.5,123.32,6.54490081]
[1720149135193,14.5688,123.47,123.32,6.54490081]
[1720149135509,14.5688,123.47,123.34,40.5357]
[1720149135815,30.9631347,123.56,123.34,28.3752]
[1720149135816,14.5688,123.44,123.34,28.3752]
[1720149136025,14.5688,123.46,123.33,100.0]
[1720149136186,14.5688,123.52,123.4,200.0]
[1720149136388,0.2149347,123.56,123.48,100.0]
[1720149136603,0.2149347,123.56,123.5,100.4312]
[1720149136865,0.2149347,123.56,123.49,100.0]
[1720149136998,0.2149347,123.56,123.55,8.0938]
[1720149137319,0.2149347,123.56,123.55,8.2638]
[1720149137532,0.0349347,123.56,123.55,108.2638]
[1720149137818,3.47e-05,123.56,123.55,8.2638]
[1720149138632,3.47e-05,123.56,123.53,20.2373]
[1720149138798,3.47e-05,123.56,123.46,89.5067]
[1720149138799,3.47e-05,123.56,123.46,8.0992]
[1720149138999,14.5688,123.55,123.47,20.2463]
[1720149139199,12.3663,123.54,123.38,8.105]
[1720149139499,14.5688,123.46,123.35,8.1064]
[1720149139693,14.5688,123.5,123.37,20.2638]
[1720149139896,14.5688,123.5,123.37,8.1055]
[1720149140199,14.5688,123.5,123.38,20.2623]
[1720149140395,14.5688,123.46,123.31,100.0]
[1720149140642,31.4132,123.51,123.35,100.0]
[1720149141009,31.4132,123.51,123.4,20.2591]
[1720149141207,31.4132,123.51,123.38,100.0]
[1720149141509,3.47e-05,123.56,123.45,100.0]
[1720149141718,3.47e-05,123.56,123.49,100.0]
[1720149141920,3.47e-05,123.56,123.52,20.2392]
[1720149142130,3.47e-05,123.56,123.47,200.60166991]
[1720149142446,3.47e-05,123.56,123.55,8.525]
[1720149142605,3.47e-05,123.56,123.54,60.7048]
[1720149142606,0.1,123.69,123.6,20.2249]
[1720149142802,0.1,123.69,123.59,8.0909]
[1720149143039,0.1,123.69,123.54,40.47]
[1720149143217,0.80912696,123.61,123.55,0.43139037]
[1720149143416,0.80912696,123.61,123.6,8.0906]
[1720149143618,2.696e-05,123.61,123.6,8.0906]
[1720149143819,2.696e-05,123.61,123.6,208.0906]
[1720149144021,2.696e-05,123.61,123.58,20.2292]
[1720149144022,0.1,123.69,123.67,20.2142]
[1720149144313,0.1,123.69,123.68,8.0853]
[1720149144514,0.1,123.69,123.63,20.2204]
[1720149144715,0.1,123.69,123.59,20.2268]
[1720149144716,15.1,123.69,123.59,20.2268]
[1720149145021,15.0,123.66,123.6,8.0902]
[1720149145224,15.0,123.66,123.55,0.22194427]
[1720149145432,15.0,123.66,123.62,8.0891]
[1720149145731,0.1,123.69,123.55,140.69104427]
[1720149145732,0.1,123.69,123.68,8.0853]
[1720149145913,0.1,123.69,123.6,20.2249]
[1720149146108,0.04809085,123.7,123.66,120.2164]
[1720149146311,0.04809085,123.7,123.69,200.0]
[1720149146312,9.085e-05,123.7,123.69,200.0]
[1720149146516,0.1,123.79,123.78,28.2759]
[1720149146728,0.1,123.79,123.78,28.4459]
[1720149146906,0.1,123.79,123.74,20.2031]
[1720149147103,0.1,123.79,123.68,100.0]
[1720149147336,0.1,123.79,123.7,100.0]
[1720149147511,0.1,123.79,123.71,100.17]
[1720149147831,0.1349347,123.81,123.8,8.0775]
[1720149148047,0.1349347,123.81,123.8,28.2713]
[1720149148339,0.1349347,123.81,123.8,8.0775]
[1720149148636,3.47e-05,123.81,123.8,8.0775]
[1720149149046,0.1,123.89,123.81,8.0768]
[1720149149206,0.1,123.89,123.78,49.01]
[1720149149207,15.1,123.89,123.82,8.0755]
[1720149149410,0.1,123.89,123.84,20.1865]
[1720149149611,0.1,123.89,123.78,0.41819943]
[1720149149612,15.0,123.87,123.78,0.41819943]
[1720149149931,15.0,123.81,123.78,0.41819943]
[1720149150134,15.0,123.81,123.71,20.2077]
[1720149150351,15.0,123.77,123.68,8.0852]
[1720149150509,15.0,123.73,123.67,1.87050457]
[1720149150710,15.0,123.69,123.67,1.87050457]
[1720149151118,15.0,123.76,123.67,22.08530457]
[1720149151309,15.0,123.76,123.67,9.95650457]
[1720149151510,15.0,123.72,123.67,1.87050457]
[1720149151712,15.0,123.68,123.57,20.2299]
[1720149152011,15.0,123.65,123.57,20.2299]
[1720149152228,15.0,123.61,123.51,0.1]
[1720149152521,15.0,123.7,123.52,20.2394]
[1720149152522,15.0,123.59,123.52,20.2394]
[1720149152723,15.0,123.59,123.51,0.1]
[1720149152937,15.0,123.57,123.54,8.0942]
[1720149153262,15.0,123.59,123.51,0.1]
[1720149153540,15.0,123.57,123.51,0.1]
[1720149153722,15.0,123.55,123.51,0.1]
[1720149153921,32.566,123.61,123.4,100.0]
[1720149153922,15.0,123.51,123.4,100.0]
[1720149154240,15.0,123.48,123.45,20.2507]
[1720149154615,15.0,123.48,123.46,8.0994]
[1720149154812,15.0,123.48,123.45,20.2507]
[1720149155018,15.0,123.48,123.42,8.1023]
[1720149155324,15.0,123.48,123.41,20.3567]
[1720149155325,15.0,123.48,123.41,0.1]
[1720149155525,15.0,123.43,123.41,0.1]
[1720149155730,15.0,123.39,123.32,20.2719]
[1720149156117,15.0,123.39,123.31,0.1]
[1720149157034,15.0,123.52,123.4,100.0]
[1720149157225,15.0,123.65,123.47,140.4942]
[1720149157548,45.055,123.66,123.49,100.0]
[1720149157843,45.055,123.66,123.44,49.01]
[1720149157844,15.0,123.65,123.45,149.01]
[1720149158049,15.0,123.62,123.49,20.2444]
[1720149158254,15.0,123.62,123.5,0.17]
[1720149158552,15.0,123.6,123.39,140.5187]
[1720149158727,15.0,123.59,123.5,20.2426]
[1720149158945,45.055,123.66,123.53,20.2376]
[1720149158946,15.0,123.61,123.53,20.2376]
[1720149159139,15.0,123.61,123.54,0.17]
[1720149159323,15.0,123.65,123.51,40.6515]
[1720149159523,15.0,123.65,123.55,100.0]
[1720149159744,0.1,123.69,123.52,20.0]
[1720149159745,0.1,123.69,123.62,20.2227]
[1720149159945,0.1,123.69,123.62,8.0891]
[1720149160249,0.1,123.69,123.56,0.17]
[1720149160250,0.1,123.69,123.56,100.17]
[1720149160418,15.0,123.68,123.56,0.17]
[1720149160618,15.0,123.68,123.45,53.0536]
[1720149160619,15.0,123.64,123.47,149.01]
[1720149160935,15.0,123.67,123.58,200.0]
[1720149161138,0.1,123.69,123.59,100.0]
[1720149161352,0.1,123.69,123.61,100.0]
[1720149161551,0.1,123.69,123.59,100.0]
[1720149161751,0.1,123.69,123.61,120.2241]
[1720149162048,0.1,123.69,123.65,8.0867]
[1720149162249,0.1,123.69,123.66,0.17]
[1720149163242,0.80866894,123.67,123.66,0.17]
[1720149163550,15.0,123.63,123.58,20.2284]
[1720149163852,15.0,123.61,123.53,20.2376]
[1720149164220,15.0,123.57,123.51,8.0958]
[1720149164451,15.0,123.57,123.49,20.2433]
[1720149164452,15.0,123.57,123.49,28.3405]
[1720149164746,8.087,123.66,123.49,20.2433]
[1720149164747,15.0,123.55,123.49,20.2433]
[1720149165247,15.0,123.61,123.55,8.0933]
[1720149165431,15.0,123.61,123.55,20.2346]
[1720149165744,15.0,123.61,123.51,20.2401]
[1720149165968,15.0,123.57,123.49,8.0972]
[1720149166254,15.0,123.53,123.43,100.0]
[1720149166432,15.0,123.51,123.43,20.2533]
[1720149166747,15.0,123.47,123.46,8.0997]
[1720149167047,15.0,123.47,123.38,100.0]
[1720149167048,15.0,123.49,123.39,100.0]
[1720149167358,15.0,123.49,123.38,100.0]
[1720149167359,15.0,123.45,123.38,100.0]
[1720149167660,15.0,123.45,123.37,100.0]
[1720149167848,15.0,123.45,123.35,153.50460975]
[1720149167849,15.0,123.48,123.39,100.0]
[1720149168031,15.0,123.48,123.42,20.2559]
[1720149168225,15.0,123.46,123.42,20.2559]
[1720149168534,15.0,123.51,123.42,100.0]
[1720149168736,12.7829,123.58,123.46,149.01]
[1720149168737,15.0,123.56,123.46,149.01]
[1720149169035,15.0,123.56,123.47,100.0]
[1720149169235,33.2581,123.59,123.47,20.2464]
[1720149169236,15.0,123.54,123.47,20.2464]
[1720149169651,15.0,123.52,123.43,20.253]
[1720149169953,15.0,123.48,123.36,240.5297]
[1720149170143,33.2581,123.59,123.39,20.2596]
[1720149170144,15.0,123.45,123.39,20.2596]
[1720149170345,15.0,123.42,123.4,8.1037]
[1720149170546,15.0,123.4,123.35,20.2659]
[1720149170855,15.0,123.42,123.35,20.2659]
[1720149171059,15.0,123.4,123.35,20.2659]
[1720149171361,15.0,123.42,123.38,20.2617]
[1720149171533,15.0,123.42,123.37,20.2641]
[1720149172059,15.0,123.42,123.4,20.259]
[1720149172351,15.0,123.48,123.4,20.2592]
[1720149172558,15.0,123.48,123.42,8.1019]
[1720149172736,15.0,123.48,123.4,20.2592]
[1720149173045,15.0,123.48,123.38,100.0]
[1720149173046,15.0,123.46,123.38,8.105]
[1720149173252,15.0,123.45,123.39,28.3644]
[1720149173565,15.0,123.42,123.3,100.0]
[1720149173748,15.0,123.37,123.25,100.0]
[1720149173951,15.0,123.35,123.28,1.41138864]
[1720149174254,15.0,123.35,123.23,100.0]
[1720149174464,27.6784,123.35,123.26,20.282]
[1720149174626,12.6784,123.35,123.26,20.282]
[1720149174830,12.6784,123.35,123.28,8.1115]
[1720149175051,12.6784,123.35,123.22,40.576]
[1720149175052,15.0,123.33,123.22,40.576]